bitfinex/quotes_BTCUSD_20241013
["timestamp","ask_amount","ask_price","bid_price","bid_amount"]
[1728833963877,0.364538,62301.0,62300.0,0.015636]
[1728833964079,0.364538,62301.0,62300.0,0.025636]
[1728833964694,0.364538,62301.0,62300.0,0.011636]
[1728833964910,0.364538,62301.0,62300.0,0.021636]
[1728833965345,0.364538,62301.0,62300.0,0.001636]
[1728833965768,0.364538,62301.0,62300.0,0.009636]
[1728833966229,0.364538,62301.0,62300.0,0.004636]
[1728833966654,0.364538,62301.0,62300.0,0.009636]
[1728833967073,0.59073563,62301.0,62300.0,0.009636]
[1728833967332,0.364538,62301.0,62300.0,0.009636]
[1728833967572,0.53415134,62301.0,62300.0,0.009636]
[1728833968441,0.53415134,62301.0,62300.0,0.004636]
[1728833968661,0.53415134,62301.0,62300.0,0.001636]
[1728833968877,0.364538,62301.0,62300.0,0.003636]
[1728833969092,0.365538,62301.0,62300.0,0.003636]
[1728833969317,0.364538,62301.0,62300.0,0.001636]
[1728833969751,0.366538,62301.0,62300.0,0.001636]
[1728833972060,0.364538,62301.0,62300.0,0.001636]
[1728833972705,0.39068074,62301.0,62300.0,0.001636]
[1728833973105,0.38968074,62301.0,62300.0,0.001636]
[1728833973831,0.39068074,62301.0,62300.0,0.001636]
[1728833977545,0.002638,62301.0,62300.0,0.001636]
[1728833978533,0.002638,62301.0,62300.0,0.024636]
[1728833978758,0.002638,62301.0,62300.0,0.026636]
[1728833979020,0.001638,62301.0,62300.0,0.026636]
[1728833979250,0.001638,62301.0,62300.0,0.024636]
[1728833979498,0.001638,62301.0,62300.0,0.032636]
[1728833979960,0.001638,62301.0,62300.0,0.028636]
[1728833980194,0.001638,62301.0,62300.0,0.029636]
[1728833980896,0.001638,62301.0,62300.0,0.034636]
[1728833982391,0.001638,62301.0,62300.0,0.029636]
[1728833982613,0.001638,62301.0,62300.0,0.034636]
[1728833982831,0.001638,62301.0,62300.0,0.029636]
[1728833983054,0.001638,62301.0,62300.0,0.024636]
[1728833983285,0.001638,62301.0,62300.0,0.034636]
[1728833983542,0.001638,62301.0,62300.0,0.045636]
[1728833991368,0.001638,62301.0,62300.0,0.05767004]
[1728833994692,0.001638,62301.0,62300.0,0.42579228]
[1728833994939,0.001638,62301.0,62300.0,0.42458338]
[1728833996258,0.001638,62301.0,62300.0,0.42258338]
[1728833997114,0.001638,62301.0,62300.0,0.25297004]
[1728834000302,0.001638,62301.0,62300.0,0.05767004]
[1728834001289,0.001638,62301.0,62300.0,0.05766525]
[1728834006788,0.001638,62301.0,62300.0,0.05966525]
[1728834006996,0.001638,62301.0,62300.0,0.05766525]
[1728834007417,0.001638,62301.0,62300.0,0.07691205]
[1728834007632,0.192352,62305.0,62301.0,0.023]
[1728834007847,0.192352,62305.0,62303.0,0.023]
[1728834008067,0.192352,62305.0,62304.0,0.01202925]
[1728834008286,0.192352,62305.0,62304.0,0.03502925]
[1728834008497,0.43736534,62305.0,62304.0,0.03502925]
[1728834008968,0.267752,62305.0,62304.0,0.023]
[1728834009207,0.367752,62305.0,62304.0,0.023]
[1728834009426,0.1,62304.0,62302.0,0.023]
[1728834010361,0.1,62304.0,62301.0,0.023]
[1728834011815,0.105,62304.0,62301.0,0.023]
[1728834012028,0.105,62304.0,62301.0,0.03]
[1728834012403,0.105,62304.0,62302.0,0.006]
[1728834012613,0.105,62304.0,62301.0,0.03]
[1728834013025,0.105,62304.0,62301.0,0.036]
[1728834013424,0.1,62304.0,62301.0,0.029]
[1728834013624,0.267752,62305.0,62303.0,0.023]
[1728834013625,0.0754,62305.0,62303.0,0.023]
[1728834014347,0.001638,62306.0,62303.0,0.023]
[1728834015389,0.001638,62306.0,62301.0,0.023]
[1728834015600,0.001638,62306.0,62304.0,0.023]
[1728834016908,0.001638,62306.0,62301.0,0.023]
[1728834017119,0.001638,62306.0,62304.0,0.023]
[1728834017329,0.001638,62306.0,62304.0,0.027]
[1728834018002,0.001638,62306.0,62304.0,0.032]
[1728834032274,0.006638,62306.0,62304.0,0.032]
[1728834034559,0.006638,62306.0,62304.0,0.009]
[1728834034784,0.5861258,62305.0,62304.0,0.009]
[1728834035457,0.7466258,62305.0,62304.0,0.009]
[1728834035922,0.79468903,62305.0,62304.0,0.009]
[1728834036146,0.81872064,62305.0,62304.0,0.009]
[1728834036593,0.7466258,62305.0,62304.0,0.009]
[1728834037063,0.7466258,62305.0,62303.0,0.001636]
[1728834037064,0.538303,62304.0,62303.0,0.001636]
[1728834037278,0.58632892,62304.0,62303.0,0.001636]
[1728834038223,0.538303,62304.0,62303.0,0.001636]
[1728834038654,0.3778,62304.0,62303.0,0.001636]
[1728834038878,0.3778,62304.0,62303.0,0.002636]
[1728834038879,0.538303,62304.0,62303.0,0.002636]
[1728834040223,0.538303,62304.0,62303.0,0.004636]
[1728834042874,0.56344577,62304.0,62303.0,0.004636]
[1728834043555,0.40294277,62304.0,62303.0,0.004636]
[1728834044214,0.20974277,62304.0,62303.0,0.004636]
[1728834044864,0.03014277,62304.0,62303.0,0.027636]
[1728834045724,0.02514277,62304.0,62303.0,0.027636]
[1728834049834,0.005,62305.0,62304.0,0.023]
[1728834050711,0.006638,62306.0,62304.0,0.023]
[1728834051148,0.006638,62306.0,62304.0,0.024]
[1728834052018,0.106638,62306.0,62304.0,0.024]
[1728834052468,0.106638,62306.0,62304.0,0.023]
[1728834056221,0.005,62304.0,62303.0,0.001636]
[1728834056442,0.35264403,62304.0,62303.0,0.001636]
[1728834057556,0.35264403,62304.0,62303.0,0.003636]
[1728834057996,0.51314703,62304.0,62303.0,0.003636]
[1728834058650,0.51314703,62304.0,62303.0,0.004636]
[1728834058878,0.87569106,62304.0,62303.0,0.004636]
[1728834059322,1.10906279,62304.0,62303.0,0.004636]
[1728834059547,1.04206077,62304.0,62303.0,0.004636]
[1728834060042,1.04206077,62304.0,62303.0,0.002636]
[1728834060287,1.13806346,62304.0,62303.0,0.003636]
[1728834060507,0.97669375,62304.0,62303.0,0.003636]
[1728834061203,0.85266527,62304.0,62303.0,0.003636]
[1728834061669,0.78069106,62304.0,62303.0,0.003636]
[1728834061904,0.78069106,62304.0,62303.0,0.001636]
[1728834062138,0.61114703,62304.0,62303.0,0.001636]
[1728834062392,0.65912228,62304.0,62303.0,0.001636]
[1728834062630,1.1362915,62304.0,62303.0,0.001636]
[1728834066868,1.1371095,62304.0,62303.0,0.001636]
[1728834069149,0.52596247,62304.0,62303.0,0.001636]
[1728834069378,0.500818,62304.0,62303.0,0.001636]
[1728834070955,0.600818,62304.0,62303.0,0.001636]
[1728834071187,0.600818,62304.0,62303.0,0.024636]
[1728834072501,0.600818,62304.0,62303.0,0.025636]
[1728834074105,0.77036203,62304.0,62303.0,0.002636]
[1728834075967,0.600818,62304.0,62303.0,0.025636]
[1728834078648,0.595818,62304.0,62303.0,0.025636]
[1728834079343,0.595818,62304.0,62303.0,0.002636]
[1728834079582,0.000818,62304.0,62303.0,0.002636]
[1728834084600,0.000818,62304.0,62303.0,0.025636]
[1728834086334,0.000818,62304.0,62303.0,0.220636]
[1728834086543,0.000818,62304.0,62303.0,0.300236]
[1728834087646,0.000818,62304.0,62303.0,0.307236]
[1728834088090,0.000818,62304.0,62303.0,0.299236]
[1728834088344,0.000818,62304.0,62303.0,0.307236]
[1728834088561,0.000818,62304.0,62303.0,0.315236]
[1728834088762,0.000818,62304.0,62303.0,0.307236]
[1728834089212,0.000818,62304.0,62303.0,0.316236]
[1728834091490,0.000818,62304.0,62303.0,0.299236]
[1728834091734,0.000818,62304.0,62303.0,0.307236]
[1728834091952,0.000818,62304.0,62303.0,0.316236]
[1728834092174,0.000818,62304.0,62303.0,0.308236]
[1728834092388,0.000818,62304.0,62303.0,0.024636]
[1728834092595,0.000818,62304.0,62303.0,0.034636]
[1728834093876,0.000818,62304.0,62303.0,0.043636]
[1728834114659,0.000818,62304.0,62303.0,0.045636]
[1728834122925,0.000818,62304.0,62303.0,0.022636]
[1728834123346,0.084018,62304.0,62303.0,0.022636]
[1728834124201,0.000818,62304.0,62303.0,0.022636]
[1728834131797,0.161321,62304.0,62303.0,0.022636]
[1728834132034,0.36675081,62304.0,62303.0,0.022636]
[1728834132268,0.44255081,62304.0,62303.0,0.022636]
[1728834132504,0.49071433,62304.0,62303.0,0.022636]
[1728834132734,0.53993791,62304.0,62303.0,0.022636]
[1728834133020,0.73453791,62304.0,62303.0,0.022636]
[1728834133538,0.66229263,62304.0,62303.0,0.022636]
[1728834133784,0.76772244,62304.0,62303.0,0.022636]
[1728834134326,0.77272244,62304.0,62303.0,0.022636]
[1728834134600,1.00633743,62304.0,62303.0,0.022636]
[1728834134830,0.77272244,62304.0,62303.0,0.022636]
[1728834135319,0.77272244,62304.0,62303.0,0.013636]
[1728834135566,0.84489691,62304.0,62303.0,0.004636]
[1728834136018,0.84490364,62304.0,62303.0,0.006636]
[1728834136746,0.87815225,62304.0,62303.0,0.006636]
[1728834136992,0.87815225,62304.0,62300.0,0.001636]
[1728834136993,0.165511,62301.0,62300.0,0.001636]
[1728834137255,0.73777062,62301.0,62300.0,0.001636]
[1728834137483,0.85803299,62301.0,62300.0,0.001636]
[1728834137732,0.89914033,62301.0,62300.0,0.001636]
[1728834138502,0.89914033,62301.0,62293.0,0.000818]
[1728834138503,0.68268943,62294.0,62293.0,0.000818]
[1728834138762,0.80988461,62294.0,62293.0,0.000818]
[1728834139020,0.83391661,62294.0,62293.0,0.000818]
[1728834139273,0.85906499,62294.0,62293.0,0.000818]
[1728834139479,0.762937,62294.0,62293.0,0.000818]
[1728834139715,0.97120923,62294.0,62293.0,0.000818]
[1728834140366,0.95017075,62294.0,62293.0,0.000818]
[1728834140575,1.28880104,62294.0,62293.0,0.000818]
[1728834141314,1.29480104,62294.0,62293.0,0.001818]
[1728834141531,1.24678862,62294.0,62293.0,0.001818]
[1728834142427,1.35221843,62294.0,62293.0,0.001818]
[1728834143145,0.165531,62293.0,62292.0,0.00088366]
[1728834143373,0.5852439,62293.0,62292.0,0.00088366]
[1728834143610,0.260557,62283.0,62282.0,0.24042122]
[1728834143823,0.47141662,62283.0,62282.0,0.24042122]
[1728834144042,0.49656766,62283.0,62282.0,0.24042122]
[1728834144283,0.1,62276.0,62271.0,0.00012872]
[1728834144491,0.20542981,62276.0,62271.0,0.00012872]
[1728834144714,0.36600481,62276.0,62271.0,0.02312872]
[1728834144964,0.10542981,62272.0,62271.0,0.02312872]
[1728834145415,0.20542981,62272.0,62271.0,0.00012872]
[1728834146047,0.20542981,62272.0,62271.0,0.01312872]
[1728834146484,0.36701481,62272.0,62271.0,0.02612872]
[1728834146696,0.36701481,62272.0,62271.0,0.01312872]
[1728834147781,0.63381433,62272.0,62271.0,0.01312872]
[1728834147991,0.63281433,62272.0,62271.0,0.00012872]
[1728834148233,0.52738452,62272.0,62271.0,0.00012872]
[1728834148453,0.52938452,62272.0,62271.0,0.02812872]
[1728834149122,0.52738452,62272.0,62271.0,0.00012872]
[1728834149331,0.52838452,62272.0,62271.0,0.01412872]
[1728834149569,0.52938452,62272.0,62271.0,0.02712872]
[1728834149778,0.36701481,62272.0,62271.0,0.01412872]
[1728834151273,0.36801481,62272.0,62271.0,0.02712872]
[1728834152769,0.75154462,62272.0,62271.0,0.02712872]
[1728834153401,0.74654462,62272.0,62271.0,0.02712872]
[1728834153621,0.91291433,62272.0,62271.0,0.02712872]
[1728834154499,1.01934414,62272.0,62271.0,0.01312872]
[1728834154706,0.91291433,62272.0,62271.0,0.00012872]
[1728834154939,1.01634414,62272.0,62271.0,0.00612872]
[1728834155148,0.91091433,62272.0,62271.0,0.01012872]
[1728834155360,0.91291433,62272.0,62271.0,0.00412872]
[1728834155580,0.91091433,62272.0,62271.0,0.00012872]
[1728834155777,0.91091433,62272.0,62271.0,0.00212872]
[1728834156210,0.005,62269.0,62268.0,0.000818]
[1728834156429,0.74955762,62267.0,62261.0,0.24042122]
[1728834157110,0.74955762,62267.0,62253.0,0.24123922]
[1728834157316,0.66928753,62267.0,62253.0,0.24123922]
[1728834158616,0.67028753,62267.0,62253.0,0.24123922]
[1728834159288,0.67328753,62267.0,62253.0,0.24123922]
[1728834159737,0.64812781,62267.0,62253.0,0.24123922]
[1728834159946,0.80949752,62267.0,62253.0,0.24123922]
[1728834162168,0.81149752,62267.0,62253.0,0.24123922]
[1728834162380,0.36606181,62254.0,62253.0,0.24123922]
[1728834162803,0.36606181,62254.0,62253.0,0.000818]
[1728834163015,0.36606181,62254.0,62253.0,0.000318]
[1728834164102,0.39122458,62254.0,62253.0,0.000318]
[1728834164569,0.39122458,62254.0,62253.0,0.006318]
[1728834164843,0.53776542,62254.0,62253.0,0.006318]
[1728834165046,0.93233561,62254.0,62253.0,0.006318]
[1728834165232,0.93233561,62254.0,62253.0,0.011318]
[1728834165944,0.93233561,62254.0,62253.0,0.005318]
[1728834166162,0.93233561,62254.0,62253.0,0.000318]
[1728834166405,0.93233561,62254.0,62253.0,0.005318]
[1728834166852,0.78579477,62254.0,62253.0,0.009318]
[1728834167079,0.89122458,62254.0,62253.0,0.009318]
[1728834167791,0.78579477,62254.0,62253.0,0.009318]
[1728834168469,0.78579477,62254.0,62253.0,0.009278]
[1728834168693,0.94716448,62254.0,62253.0,0.009278]
[1728834169758,0.92200171,62254.0,62253.0,0.009278]
[1728834170577,0.760632,62254.0,62253.0,0.009278]
[1728834172805,0.78579471,62254.0,62253.0,0.009278]
[1728834175384,1.05529471,62254.0,62253.0,0.009278]
[1728834176235,1.05529471,62254.0,62253.0,0.005278]
[1728834176450,1.05529471,62254.0,62253.0,0.000278]
[1728834176658,1.21966442,62254.0,62253.0,0.000278]
[1728834177491,0.78879471,62254.0,62253.0,0.000278]
[1728834177702,0.78879471,62254.0,62253.0,0.001278]
[1728834178346,0.78879471,62254.0,62253.0,0.000278]
[1728834178561,0.78979471,62254.0,62253.0,0.000278]
[1728834179637,0.764632,62254.0,62253.0,0.000278]
[1728834179883,0.92600171,62254.0,62253.0,0.000278]
[1728834180576,1.20502071,62254.0,62253.0,0.000278]
[1728834182729,1.230186,62254.0,62253.0,0.000278]
[1728834185408,0.160663,62242.0,62241.0,0.001636]
[1728834185618,0.260663,62242.0,62241.0,0.001636]
[1728834185835,0.3409915,62242.0,62241.0,0.001636]
[1728834186278,0.36615914,62242.0,62241.0,0.001636]
[1728834186904,0.36715914,62242.0,62241.0,0.008636]
[1728834187586,0.86715914,62242.0,62241.0,0.008636]
[1728834188452,0.78683064,62242.0,62241.0,0.008636]
[1728834188860,0.78783064,62242.0,62241.0,0.016636]
[1728834189683,0.86809281,62242.0,62241.0,0.016636]
[1728834192690,0.89325951,62242.0,62241.0,0.016636]
[1728834198004,0.7878297,62242.0,62241.0,0.016636]
[1728834198244,0.6271667,62242.0,62241.0,0.212436]
[1728834198446,0.7878297,62242.0,62241.0,0.212396]
[1728834199511,0.6271667,62242.0,62241.0,0.212396]
[1728834199715,0.602,62242.0,62241.0,0.212396]
[1728834200119,0.762663,62242.0,62241.0,0.212396]
[1728834200662,0.602,62242.0,62241.0,0.212396]
[1728834201291,0.762663,62242.0,62241.0,0.212396]
[1728834202556,0.502,62242.0,62241.0,0.237396]
[1728834202854,0.502,62242.0,62241.0,0.314996]
[1728834203097,0.662663,62242.0,62241.0,0.291996]
[1728834203535,0.661663,62242.0,62241.0,0.283996]
[1728834203748,0.90208422,62242.0,62241.0,0.008596]
[1728834203961,0.90363538,62242.0,62241.0,0.019596]
[1728834204162,0.92880173,62242.0,62241.0,0.019596]
[1728834204370,0.92780173,62242.0,62241.0,0.008596]
[1728834204576,0.92780173,62242.0,62241.0,0.001596]
[1728834204998,0.92780173,62242.0,62241.0,0.010596]
[1728834205208,0.92880173,62242.0,62241.0,0.020596]
[1728834205413,0.92780173,62242.0,62241.0,0.011596]
[1728834205821,0.92680173,62242.0,62241.0,0.001596]
[1728834206236,0.92680173,62242.0,62241.0,0.007596]
[1728834206839,0.92680173,62242.0,62241.0,0.014596]
[1728834209348,0.78582935,62242.0,62241.0,0.014596]
[1728834209774,0.760663,62242.0,62241.0,0.014596]
[1728834212893,0.78582981,62242.0,62241.0,0.014596]
[1728834219749,0.760663,62242.0,62241.0,0.014596]
[1728834220844,0.80872413,62242.0,62241.0,0.014596]
[1728834221065,0.93851029,62242.0,62241.0,0.014596]
[1728834221482,0.89044916,62242.0,62241.0,0.014596]
[1728834222566,0.93851029,62242.0,62241.0,0.014596]
[1728834222794,0.83389088,62242.0,62241.0,0.014596]
[1728834223217,0.83389088,62242.0,62241.0,0.007596]
[1728834223428,0.83389088,62242.0,62241.0,0.001596]
[1728834223642,0.83389088,62242.0,62241.0,0.004596]
[1728834223848,0.83389088,62242.0,62241.0,0.006596]
[1728834224081,0.99526059,62242.0,62241.0,0.006596]
[1728834224934,0.94719946,62242.0,62241.0,0.006596]
[1728834225151,1.01929115,62242.0,62241.0,0.006596]
[1728834225388,0.94719946,62242.0,62241.0,0.006596]
[1728834225590,1.21139946,62242.0,62241.0,0.006596]
[1728834225797,1.28352053,62242.0,62241.0,0.006596]
[1728834226415,1.12215082,62242.0,62241.0,0.006596]
[1728834227241,1.05166775,62242.0,62241.0,0.006596]
[1728834227454,1.14779001,62242.0,62241.0,0.006596]
[1728834228123,1.05166775,62242.0,62241.0,0.006596]
[1728834228331,1.05666775,62242.0,62241.0,0.006596]
[1728834228751,1.05666775,62242.0,62241.0,0.003596]
[1728834229171,1.05966775,62242.0,62241.0,0.003596]
[1728834229591,1.14559255,62242.0,62241.0,0.001596]
[1728834229803,1.1174258,62242.0,62241.0,0.001596]
[1728834230010,1.1204258,62242.0,62241.0,0.001596]
[1728834230431,1.1244258,62242.0,62241.0,0.001596]
[1728834231042,1.1204258,62242.0,62241.0,0.001596]
[1728834231456,1.038501,62242.0,62241.0,0.001596]
[1728834232709,1.06366995,62242.0,62241.0,0.001596]
[1728834234223,1.18387413,62242.0,62241.0,0.001596]
[1728834234425,1.18387642,62242.0,62241.0,0.001596]
[1728834235696,1.06366995,62242.0,62241.0,0.001596]
[1728834235907,1.22503966,62242.0,62241.0,0.001596]
[1728834236973,1.34524613,62242.0,62241.0,0.001596]
[1728834238459,1.22503966,62242.0,62241.0,0.001596]
[1728834239717,1.19987071,62242.0,62241.0,0.001596]
[1728834242054,1.19987071,62242.0,62230.0,0.001636]
[1728834242055,0.260691,62231.0,62230.0,0.001636]
[1728834242268,0.36612081,62231.0,62230.0,0.001636]
[1728834242489,0.37112081,62231.0,62230.0,0.001636]
[1728834242707,0.26073,62216.0,62215.0,0.0772]
[1728834242924,0.26073,62216.0,62214.0,0.1869001]
[1728834242925,0.260732,62215.0,62214.0,0.1869001]
[1728834243199,0.27592026,62215.0,62214.0,0.0001001]
[1728834243838,0.62177129,62215.0,62214.0,0.0001001]
[1728834244066,0.40652749,62215.0,62214.0,0.0001001]
[1728834244967,0.40752749,62215.0,62214.0,0.0101001]
[1728834245215,0.40752749,62215.0,62214.0,0.0041001]
[1728834245216,0.30109768,62215.0,62214.0,0.0041001]
[1728834245684,0.30109768,62215.0,62214.0,0.0081001]
[1728834245901,0.46246739,62215.0,62214.0,0.0081001]
[1728834246140,0.30109768,62215.0,62214.0,0.008]
[1728834247303,0.40652749,62215.0,62214.0,0.0852]
[1728834248206,0.14036568,62215.0,62214.0,0.1082]
[1728834248867,0.1,62215.0,62214.0,0.1082]
[1728834249305,0.27592026,62215.0,62214.0,0.031]
[1728834249510,0.11518826,62215.0,62214.0,0.031]
[1728834249716,0.27592026,62215.0,62214.0,0.031]
[1728834249921,0.11518826,62215.0,62214.0,0.031]
[1728834250800,0.27592026,62215.0,62214.0,0.027819]
[1728834251010,0.27592026,62215.0,62214.0,0.028819]
[1728834251217,0.27592026,62215.0,62214.0,0.032819]
[1728834251431,0.27592026,62215.0,62214.0,0.027819]
[1728834251655,0.11518826,62215.0,62214.0,0.000819]
[1728834251869,0.11518826,62215.0,62214.0,0.029819]
[1728834252120,0.1,62215.0,62214.0,0.112019]
[1728834252585,0.5,62216.0,62215.0,0.023]
[1728834252793,0.5,62216.0,62215.0,0.303]
[1728834253667,0.5,62216.0,62215.0,0.308]
[1728834254292,0.5,62216.0,62215.0,0.303]
[1728834254499,0.5,62216.0,62215.0,0.312]
[1728834254720,0.5,62216.0,62215.0,0.32]
[1728834257671,0.1,62222.0,62215.0,0.32]
[1728834257889,0.25509279,62221.0,62215.0,0.32]
[1728834258111,0.1,62220.0,62215.0,0.32]
[1728834258328,0.1,62220.0,62215.0,0.31996]
[1728834258581,0.1,62220.0,62215.0,0.31096]
[1728834259075,0.321373,62233.0,62215.0,0.31096]
[1728834259076,0.1,62222.0,62221.0,0.002]
[1728834259281,0.1,62222.0,62221.0,0.2722]
[1728834260357,0.260698,62229.0,62221.0,0.2722]
[1728834260561,0.1,62227.0,62222.0,0.023]
[1728834261775,0.260698,62229.0,62222.0,0.023]
[1728834261982,0.1,62227.0,62222.0,0.023]
[1728834262187,0.1,62227.0,62222.0,0.029]
[1728834262363,0.321345,62239.0,62230.0,0.023]
[1728834262364,0.02516972,62234.0,62230.0,0.023]
[1728834262574,0.24042122,62231.0,62230.0,0.213]
[1728834262835,0.24042122,62231.0,62230.0,0.023]
[1728834262836,0.160691,62231.0,62230.0,0.023]
[1728834264454,0.321378,62232.0,62230.0,0.023]
[1728834264455,0.160689,62232.0,62230.0,0.023]
[1728834264603,0.160689,62232.0,62230.0,0.027]
[1728834265219,0.260691,62231.0,62230.0,0.027]
[1728834265448,0.1,62231.0,62230.0,0.03]
[1728834265808,0.02516972,62234.0,62230.0,0.213]
[1728834266244,0.02516972,62234.0,62230.0,0.215]
[1728834266452,0.02516972,62234.0,62230.0,0.213]
[1728834266730,0.12516972,62234.0,62230.0,0.217]
[1728834266979,0.12516972,62234.0,62230.0,0.224]
[1728834267118,0.1,62234.0,62232.0,0.023]
[1728834267502,0.40109422,62239.0,62232.0,0.023]
[1728834267503,0.1,62237.0,62232.0,0.023]
[1728834267913,0.1,62238.0,62232.0,0.023]
[1728834268119,0.260674,62238.0,62232.0,0.023]
[1728834268396,0.260674,62238.0,62232.0,0.028]
[1728834268783,0.1,62239.0,62232.0,0.028]
[1728834269339,0.260671,62239.0,62232.0,0.028]
[1728834269540,0.1,62237.0,62232.0,0.028]
[1728834269789,0.1,62237.0,62231.0,0.0822]
[1728834269790,0.1,62237.0,62234.0,0.023]
[1728834270865,0.1,62236.0,62234.0,0.023]
[1728834271065,0.1,62236.0,62234.0,0.024]
[1728834271270,0.260681,62235.0,62234.0,0.024]
[1728834271479,0.260681,62235.0,62234.0,0.001]
[1728834272954,0.1,62236.0,62231.0,0.023]
[1728834273217,0.1,62236.0,62230.0,0.2722]
[1728834273218,0.1,62236.0,62235.0,0.023]
[1728834273692,0.1,62236.0,62234.0,0.001]
[1728834273952,0.160681,62235.0,62234.0,0.004]
[1728834274203,0.260681,62235.0,62234.0,0.006]
[1728834274447,0.260681,62235.0,62234.0,0.025]
[1728834274647,0.1,62234.0,62231.0,0.023]
[1728834274847,0.260684,62234.0,62231.0,0.023]
[1728834275454,0.1,62234.0,62231.0,0.023]
[1728834275865,0.001638,62235.0,62231.0,0.023]
[1728834276292,0.1,62233.0,62231.0,0.023]
[1728834277213,0.1,62233.0,62231.0,0.027]
[1728834277586,0.1,62233.0,62231.0,0.023]
[1728834277905,0.1,62233.0,62231.0,0.029]
[1728834278137,0.1,62233.0,62231.0,0.033]
[1728834278461,0.001638,62235.0,62231.0,0.033]
[1728834278708,0.1,62233.0,62231.0,0.033]
[1728834279314,0.1,62233.0,62231.0,0.027]
[1728834279512,0.1,62233.0,62231.0,0.031]
[1728834279833,0.001638,62235.0,62231.0,0.027]
[1728834280029,0.101638,62235.0,62231.0,0.027]
[1728834280268,0.26232,62235.0,62231.0,0.025]
[1728834280512,0.26232,62235.0,62231.0,0.023]
[1728834280764,0.26232,62235.0,62221.0,0.01201542]
[1728834280765,0.16072,62220.0,62219.0,0.01201542]
[1728834281022,0.1,62231.0,62216.0,0.01922467]
[1728834281023,0.160724,62219.0,62216.0,0.24042122]
[1728834281304,0.16073,62216.0,62215.0,0.000819]
[1728834281547,0.160727,62217.0,62215.0,0.000819]
[1728834281777,0.16073,62216.0,62215.0,0.000819]
[1728834283335,0.16073,62216.0,62215.0,0.023819]
[1728834284280,0.16073,62216.0,62215.0,0.044819]
[1728834287943,0.02517465,62217.0,62215.0,0.044819]
[1728834288165,0.16073,62216.0,62215.0,0.044819]
[1728834288630,0.18590365,62217.0,62215.0,0.044819]
[1728834288914,0.16073,62216.0,62215.0,0.044819]
[1728834289149,0.16073,62216.0,62215.0,0.033819]
[1728834289411,0.02517465,62217.0,62215.0,0.043819]
[1728834289866,0.160726,62218.0,62215.0,0.033819]
[1728834290086,0.16073,62216.0,62215.0,0.023819]
[1728834290299,0.16073,62216.0,62215.0,0.034819]
[1728834290555,0.01480075,62219.0,62215.0,0.043819]
[1728834290815,0.160728,62217.0,62215.0,0.032819]
[1728834291050,0.321439,62221.0,62215.0,0.032819]
[1728834291051,0.1,62226.0,62217.0,0.023]
[1728834291289,0.160716,62222.0,62217.0,0.023]
[1728834292217,0.321415,62225.0,62217.0,0.023]
[1728834292218,0.1,62224.0,62217.0,0.023]
[1728834292684,0.1,62222.0,62217.0,0.023]
[1728834292882,0.1,62224.0,62217.0,0.023]
[1728834293064,0.26071,62224.0,62217.0,0.023]
[1728834293423,0.26071,62224.0,62217.0,0.025]
[1728834293627,0.02517156,62229.0,62217.0,0.025]
[1728834293628,0.1,62225.0,62220.0,0.023]
[1728834293878,0.02517156,62229.0,62220.0,0.023]
[1728834293879,0.34042122,62229.0,62220.0,0.023]
[1728834294105,0.34042122,62229.0,62220.0,0.19295464]
[1728834294306,0.34042122,62229.0,62224.0,0.023]
[1728834294509,0.001638,62235.0,62224.0,0.025]
[1728834294732,0.24042122,62230.0,62225.0,0.081]
[1728834294955,0.001638,62235.0,62226.0,0.023]
[1728834295178,0.001638,62235.0,62228.0,0.002]
[1728834295392,0.001638,62235.0,62226.0,0.023]
[1728834295393,0.160684,62234.0,62229.0,0.023]
[1728834295572,0.001638,62235.0,62226.0,0.002]
[1728834295573,0.160686,62233.0,62227.0,0.023]
[1728834295843,0.001638,62235.0,62234.0,0.005]
[1728834296030,0.001638,62235.0,62234.0,0.27022401]
[1728834296368,0.001638,62235.0,62234.0,0.109]
[1728834298299,0.001638,62235.0,62234.0,0.27022401]
[1728834298719,0.001638,62235.0,62234.0,0.28322401]
[1728834298921,0.001638,62235.0,62234.0,0.28522401]
[1728834299139,0.001638,62235.0,62234.0,0.29922401]
[1728834299355,0.001638,62235.0,62234.0,0.136]
[1728834300406,0.001638,62235.0,62234.0,0.131]
[1728834301507,0.001638,62235.0,62234.0,0.136]
[1728834301714,0.001638,62235.0,62234.0,0.131]
[1728834301926,0.001638,62235.0,62234.0,0.136]
[1728834302352,0.001638,62235.0,62234.0,0.138]
[1728834303392,0.001638,62235.0,62234.0,0.61917865]
[1728834305219,0.001638,62235.0,62234.0,0.44722401]
[1728834307081,0.001638,62235.0,62234.0,0.44922401]
[1728834307816,0.001638,62235.0,62234.0,0.44722401]
[1728834308445,0.001638,62235.0,62234.0,0.44922401]
[1728834309889,0.001638,62235.0,62234.0,0.44722401]
[1728834310250,0.001638,62235.0,62234.0,0.44922401]
[1728834310458,0.001638,62235.0,62234.0,0.61917865]
[1728834311079,0.001638,62235.0,62234.0,0.44922401]
[1728834311346,0.001638,62235.0,62234.0,0.79330701]
[1728834311756,0.001638,62235.0,62234.0,0.82549701]
[1728834312377,0.001638,62235.0,62234.0,0.81149701]
[1728834312587,0.001638,62235.0,62234.0,0.81249701]
[1728834312837,0.001638,62235.0,62234.0,0.82649701]
[1728834313059,0.001638,62235.0,62234.0,0.82450768]
[1728834313292,0.001638,62237.0,62236.0,0.46982264]
[1728834313557,0.001638,62237.0,62236.0,1.07110129]
[1728834313805,0.001638,62242.0,62241.0,0.36980964]
[1728834314044,0.001638,62242.0,62241.0,0.77243365]
[1728834315445,0.001638,62242.0,62241.0,0.79543365]
[1728834315803,0.001638,62242.0,62241.0,0.80943365]